bitfinex-derivatives/quotes_BNBF0:USTF0_20241225
["timestamp","ask_amount","ask_price","bid_price","bid_amount"]
[1735104166494,0.2839578,704.33,703.23,1.05878385]
[1735104168695,0.2839578,704.33,703.22,1.05878385]
[1735104169597,0.2839578,704.33,703.23,1.05878385]
[1735104170998,0.2839578,704.33,703.22,1.05878385]
[1735104172099,0.2839578,704.33,703.23,1.05878385]
[1735104172896,0.2839578,704.33,703.25,1.05878385]
[1735104173996,0.2839578,704.33,703.26,1.05878385]
[1735104175198,0.2839578,704.33,703.28,1.05878385]
[1735104176102,0.2839578,704.33,703.37,1.05878385]
[1735104177300,0.2839578,704.33,703.38,1.05878385]
[1735104179200,0.2839578,704.33,703.37,1.05878385]
[1735104180406,0.2839578,704.33,703.38,1.05878385]
[1735104181607,0.2839578,704.33,703.4,1.05878385]
[1735104182508,0.2839578,704.33,703.41,1.05878385]
[1735104183101,0.2839578,704.33,703.4,1.05878385]
[1735104185211,0.2839578,704.33,703.39,1.05878385]
[1735104186210,0.2839578,704.33,703.38,1.05878385]
[1735104187409,0.2839578,704.33,703.34,1.05878385]
[1735104188307,0.2839578,704.33,703.36,1.05878385]
[1735104189412,0.2839578,704.33,703.35,1.05878385]
[1735104190610,0.2839578,704.33,703.34,1.05878385]
[1735104191814,0.2839578,704.33,703.35,1.05878385]
[1735104193909,0.2839578,704.33,702.82,1.5551085]
[1735104193910,0.2839578,704.33,703.42,1.05878385]
[1735104195007,0.2839578,704.33,703.09,1.05878385]
[1735104195008,0.2839578,704.33,703.32,1.05878385]
[1735104196111,0.2839578,704.33,703.04,1.05878385]
[1735104196112,0.2839578,704.33,703.33,1.05878385]
[1735104197118,0.2839578,704.33,703.37,1.05878385]
[1735104199220,0.2839578,704.33,703.34,1.05878385]
[1735104200324,0.2839578,704.33,703.35,1.05878385]
[1735104204129,0.2839578,704.33,703.32,1.05878385]
[1735104207229,0.2839578,704.33,703.33,1.05878385]
[1735104208230,0.2839578,704.33,703.35,1.05878385]
[1735104209428,0.2839578,704.33,703.58,1.05878385]
[1735104210432,0.2839578,704.33,703.4,1.05878385]
[1735104210433,0.2839578,704.33,703.6,1.05878385]
[1735104212534,0.2839578,704.33,703.56,1.05878385]
[1735104213734,0.2839578,704.33,703.57,1.05878385]
[1735104214436,0.2839578,704.33,703.54,1.05878385]
[1735104215837,0.2839578,704.33,703.55,1.05878385]
[1735104218341,0.2839578,704.33,703.54,1.05878385]
[1735104219734,0.2839578,704.33,703.33,1.05878385]
[1735104219735,0.2839578,704.33,703.49,1.05878385]
[1735104220641,0.2839578,704.33,703.48,1.05878385]
[1735104222240,0.26124184,704.32,703.48,1.05878385]
[1735104222437,0.28396586,704.31,703.48,1.05878385]
[1735104222640,0.28396586,704.31,703.32,1.05878385]
[1735104223644,0.28396586,704.31,703.07,1.05878385]
[1735104224645,0.28396586,704.31,703.02,1.05878385]
[1735104225442,0.28396586,704.31,702.99,1.05878385]
[1735104226447,0.28396586,704.31,702.97,1.05878385]
[1735104227446,0.28396586,704.31,702.05,2.16168369]
[1735104227447,0.28396586,704.31,702.95,1.05878385]
[1735104228247,0.28396586,704.31,702.93,1.05878385]
[1735104228846,0.28396586,704.31,702.92,1.05878385]
[1735104230147,0.28396586,704.31,702.0,2.16168369]
[1735104230148,0.28396586,704.31,702.9,1.05878385]
[1735104232144,0.28396586,704.31,702.89,1.05878385]
[1735104232348,0.26127177,704.3,702.89,1.05878385]
[1735104232549,0.28397393,704.29,702.89,1.05878385]
[1735104232749,0.26127177,704.28,702.89,1.05878385]
[1735104232950,0.545255,704.27,702.89,1.05878385]
[1735104233249,0.54525903,704.26,702.89,1.05878385]
[1735104233446,0.26127301,704.25,703.02,1.05878385]
[1735104233847,0.28399812,704.23,703.02,1.05878385]
[1735104234048,0.26127301,704.22,703.02,1.05878385]
[1735104234245,0.28401022,704.2,703.02,1.05878385]
[1735104234446,0.28401022,704.2,702.99,1.05878385]
[1735104235546,0.28401022,704.2,702.95,1.05878385]
[1735104236752,0.28401022,704.2,702.94,1.05878385]
[1735104237548,0.28401022,704.2,702.93,1.05878385]
[1735104238446,0.28401022,704.2,702.92,1.05878385]
[1735104240449,0.28401022,704.2,702.81,1.05878385]
[1735104241754,0.28401022,704.2,702.87,1.05878385]
[1735104242755,0.28401022,704.2,703.06,1.05878385]
[1735104243450,0.28401022,704.2,703.07,1.05878385]
[1735104245356,0.28401022,704.2,703.18,1.05878385]
[1735104247454,0.28401022,704.2,702.85,0.77961933]
[1735104247455,0.28401022,704.2,703.21,1.05878385]
[1735104248656,0.28401022,704.2,702.97,1.05878385]
[1735104248856,0.28401022,704.2,702.9,1.05878385]
[1735104250758,0.28401022,704.2,702.84,0.28455978]
[1735104250759,0.28401022,704.2,702.92,1.05878385]
[1735104252859,0.28401022,704.2,702.93,1.05878385]
[1735104253966,0.28401022,704.2,702.94,1.05878385]
[1735104254961,0.28401022,704.2,702.97,1.05878385]
[1735104256163,0.28401022,704.2,703.01,1.05878385]
[1735104257164,0.28401022,704.2,703.03,1.05878385]
[1735104258264,0.28401022,704.2,703.1,1.05878385]
[1735104260668,0.28401022,704.2,703.12,1.05878385]
[1735104261967,0.28401022,704.2,702.85,1.05878385]
[1735104261968,0.28401022,704.2,703.19,1.05878385]
[1735104262867,0.28401022,704.2,703.22,1.05878385]
[1735104263869,0.28401022,704.2,702.85,0.78207904]
[1735104263870,0.28401022,704.2,703.2,1.05878385]
[1735104264764,0.28401022,704.2,702.85,0.78207904]
[1735104264765,0.28401022,704.2,703.22,1.05878385]
[1735104267974,0.28401022,704.2,703.21,1.05878385]
[1735104268776,0.28401022,704.2,703.13,1.05878385]
[1735104270376,0.28401022,704.2,703.16,1.05878385]
[1735104272279,0.28401022,704.2,703.11,1.05878385]
[1735104273181,0.28401022,704.2,703.1,1.05878385]
[1735104274185,0.28401022,704.2,703.09,1.05878385]
[1735104275086,0.28401022,704.2,703.07,1.05878385]
[1735104275886,0.28401022,704.2,703.08,1.05878385]
[1735104276985,0.28401022,704.2,703.07,1.05878385]
[1735104277888,0.28401022,704.2,702.94,1.05878385]
[1735104279183,0.28401022,704.2,702.96,1.05878385]
[1735104280086,0.28401022,704.2,702.97,1.05878385]
[1735104280982,0.28401022,704.2,702.98,1.05878385]
[1735104281983,0.28401022,704.2,702.84,0.28455978]
[1735104281984,0.28401022,704.2,702.99,1.05878385]
[1735104282988,0.28401022,704.2,702.84,0.28455978]
[1735104282989,0.28401022,704.2,703.01,1.05878385]
[1735104284192,0.28401022,704.2,703.04,1.05878385]
[1735104287695,0.28401022,704.2,703.16,1.05878385]
[1735104289890,0.28401022,704.2,703.17,1.05878385]
[1735104290696,0.28401022,704.2,703.18,1.05878385]
[1735104292090,0.28401022,704.2,702.85,0.78278932]
[1735104292091,0.28401022,704.2,703.16,1.05878385]
[1735104293499,0.28401022,704.2,703.15,1.05878385]
[1735104294294,0.26128994,704.19,703.17,1.05878385]
[1735104294495,0.28401829,704.18,703.17,1.05878385]
[1735104294700,0.26128994,704.17,703.17,1.05878385]
[1735104295297,0.28402635,704.16,703.17,1.05878385]
[1735104295494,0.26128994,704.15,703.17,1.05878385]
[1735104295698,0.26128994,704.15,702.85,0.78278932]
[1735104295699,0.28403442,704.14,703.23,1.05878385]
[1735104295893,0.26128994,704.13,703.23,1.05878385]
[1735104296095,0.28404249,704.12,703.23,1.05878385]
[1735104296796,0.28404249,704.12,703.21,1.05878385]
[1735104297598,0.28404249,704.12,703.22,1.05878385]
[1735104300194,0.28404249,704.12,703.17,1.05878385]
[1735104301026,0.28404249,704.12,703.2,1.05878385]
[1735104301907,0.28404249,704.12,703.21,1.05878385]
[1735104303712,0.28404249,704.12,702.85,0.78278932]
[1735104303713,0.28404249,704.12,703.23,1.05878385]
[1735104305113,0.28404249,704.12,703.22,1.05878385]
[1735104305812,0.28404249,704.12,703.25,1.05878385]
[1735104307934,0.28404249,704.12,703.26,1.05878385]
[1735104308735,0.26129268,704.11,703.26,1.05878385]
[1735104309029,0.28404249,704.12,703.26,1.05878385]
[1735104309234,0.28404249,704.12,703.27,1.05878385]
[1735104309939,0.26128763,704.11,703.27,1.05878385]
[1735104310237,0.28405056,704.1,703.27,1.05878385]
[1735104311132,0.28405056,704.1,703.32,1.05878385]
[1735104312440,0.28405056,704.1,703.33,1.05878385]
[1735104313732,0.26128765,704.09,703.33,1.05878385]
[1735104313938,0.28405862,704.08,703.33,1.05878385]
[1735104314928,0.26129141,704.07,703.35,1.05878385]
[1735104315336,0.28405862,704.08,703.35,1.05878385]
[1735104315631,0.26129226,704.07,703.35,1.05878385]
[1735104316138,0.26129226,704.07,703.34,1.05878385]
[1735104316340,0.28405862,704.08,703.34,1.05878385]
[1735104317440,0.28405862,704.08,703.35,1.05878385]
[1735104318434,0.28405862,704.08,703.3,1.05878385]
[1735104319352,0.28405862,704.08,702.91,1.05878385]
[1735104320712,0.28405862,704.08,702.84,0.28455978]
[1735104323207,0.26139137,704.07,702.78,1.05878385]
[1735104323412,0.26139101,704.06,702.78,1.05878385]
[1735104323612,0.26139101,704.05,702.78,1.05878385]
[1735104323814,0.26139101,704.04,702.74,1.05878385]
[1735104324006,0.28405862,704.08,702.74,1.05878385]
[1735104324207,0.26139481,704.07,702.74,1.05878385]
[1735104324815,0.26139481,704.07,702.69,1.05878385]
[1735104326111,0.26139168,704.06,702.69,1.05878385]
[1735104326315,0.26139168,704.05,702.69,1.05878385]
[1735104326516,0.28405862,704.08,702.69,1.05878385]
[1735104326713,0.26138988,704.07,702.69,1.05878385]
[1735104327119,0.26138988,704.07,702.66,1.05878385]
[1735104327511,0.26142973,704.06,702.66,1.05878385]
[1735104327712,0.26142973,704.05,702.66,1.05878385]
[1735104327950,0.26142973,704.04,702.66,1.05878385]
[1735104328218,0.26142973,704.03,702.48,1.05878385]
[1735104328415,0.26142973,704.02,702.48,1.05878385]
[1735104328615,0.26142973,704.01,702.48,1.05878385]
[1735104328814,0.28405862,704.08,702.48,1.05878385]
[1735104329124,0.28405862,704.08,701.72,1.27054062]
[1735104329125,0.2614427,704.07,702.37,1.05878385]
[1735104330084,0.2614427,704.07,702.35,1.05878385]
[1735104330214,0.28407073,704.05,702.35,1.05878385]
[1735104330413,0.2614427,704.04,702.35,1.05878385]
[1735104331218,0.2614427,704.04,701.42,2.16168369]
[1735104331219,0.28408283,704.02,702.33,1.05878385]
[1735104332118,0.26140711,704.01,702.33,1.05878385]
[1735104332320,0.26140711,704.01,702.46,1.05878385]
[1735104332516,0.28408283,704.02,702.46,1.05878385]
[1735104332915,0.26138059,704.01,702.46,1.05878385]
[1735104333118,0.26137953,704.0,702.46,1.05878385]
[1735104333317,0.28408283,704.02,702.46,1.05878385]
[1735104333520,0.26138125,704.01,702.46,1.05878385]
[1735104333715,0.26138125,704.01,702.59,1.05878385]
[1735104334521,0.26138272,704.0,702.6,1.05878385]
[1735104334724,0.28408283,704.02,702.6,1.05878385]
[1735104334915,0.26138272,704.01,702.6,1.05878385]
[1735104335117,0.28409494,703.99,702.6,1.05878385]
[1735104337944,0.28409494,703.99,702.62,1.05878385]
[1735104338526,0.28409494,703.99,702.57,1.05878385]
[1735104339526,0.28409494,703.99,702.55,1.05878385]
[1735104340425,0.28409494,703.99,702.62,1.05878385]
[1735104341727,0.28409494,703.99,702.63,1.05878385]
[1735104343068,0.28409494,703.99,702.64,1.05878385]
[1735104344146,0.28409494,703.99,702.63,1.05878385]
[1735104345128,0.28409494,703.99,702.66,1.05878385]
[1735104346631,0.28409494,703.99,702.49,1.05878385]
[1735104346632,0.28409494,703.99,702.74,1.05878385]
[1735104347533,0.28409494,703.99,702.81,1.05878385]
[1735104348628,0.28409494,703.99,702.83,1.05878385]
[1735104349537,0.26135507,703.98,702.84,1.05878385]
[1735104349930,0.28410301,703.97,702.84,1.05878385]
[1735104350128,0.26135507,703.96,702.84,1.05878385]
[1735104350332,0.28410301,703.97,702.84,1.05878385]
[1735104350930,0.28410301,703.97,702.35,0.78052946]
[1735104350931,0.26135415,703.96,702.89,1.05878385]
[1735104351334,0.28410301,703.97,702.89,1.05878385]
[1735104351930,0.28410301,703.97,702.91,1.05878385]
[1735104352133,0.2613554,703.96,702.91,1.05878385]
[1735104352334,0.28411108,703.95,702.91,1.05878385]
[1735104352931,0.28411108,703.95,702.92,1.05878385]
[1735104353334,0.26136227,703.94,702.92,1.05878385]
[1735104353533,0.28411915,703.93,702.92,1.05878385]
[1735104353738,0.26136227,703.92,702.92,1.05878385]
[1735104354043,0.28411915,703.93,702.92,1.05878385]
[1735104354239,0.28411915,703.93,702.93,1.05878385]
[1735104355444,0.28411915,703.93,702.61,1.05878385]
[1735104359748,0.28411915,703.93,702.63,1.05878385]
[1735104360343,0.28411915,703.93,702.14,1.05878385]
[1735104360344,0.28411915,703.93,702.6,1.05878385]
[1735104362850,0.28411915,703.93,701.65,2.16168369]
[1735104362851,0.28411915,703.93,702.59,1.05878385]
[1735104364654,0.26141574,703.92,702.59,1.05878385]
[1735104364849,0.28413126,703.9,702.59,1.05878385]
[1735104365752,0.28413126,703.9,702.73,1.05878385]
[1735104366550,0.28413126,703.9,702.35,0.78287064]
[1735104366551,0.28413126,703.9,702.74,1.05878385]
[1735104367455,0.28413126,703.9,702.48,1.05878385]
[1735104368452,0.28413126,703.9,702.44,1.05878385]
[1735104369655,0.28413126,703.9,702.34,0.28476236]
[1735104369656,0.26148998,703.89,702.4,1.05878385]
[1735104370551,0.26148998,703.89,702.34,0.28476236]
[1735104372661,0.26150905,703.88,702.34,0.28476236]
[1735104372861,0.26150905,703.87,702.34,0.28476236]
[1735104373060,0.26150905,703.86,702.34,0.28476236]
[1735104373262,0.26150905,703.85,702.34,0.28476236]
[1735104373456,0.28415548,703.84,702.34,0.28476236]
[1735104374062,0.26148066,703.83,702.34,0.28476236]
[1735104374965,0.2841676,703.81,702.34,0.28476236]
[1735104375162,0.26148066,703.8,702.45,1.05878385]
[1735104375362,0.28417971,703.78,702.45,1.05878385]
[1735104375560,0.26146293,703.77,702.45,1.05878385]
[1735104375960,0.28417971,703.78,702.45,1.05878385]
[1735104376361,0.28417971,703.78,702.46,1.05878385]
[1735104377165,0.28417971,703.78,702.41,1.05878385]
[1735104378369,0.28417971,703.78,702.34,0.28476236]
[1735104378370,0.28417971,703.78,702.44,1.05878385]
[1735104380064,0.28417971,703.78,702.45,1.05878385]
[1735104381270,0.28417971,703.78,702.44,1.05878385]
[1735104382169,0.28417971,703.78,702.34,0.28476236]
[1735104382170,0.28417971,703.78,702.45,1.05878385]
[1735104383168,0.28417971,703.78,702.34,0.28476236]
[1735104383169,0.28417971,703.78,702.46,1.05878385]
[1735104384273,0.28417971,703.78,702.48,1.05878385]
[1735104385306,0.28417971,703.78,702.34,0.28476236]
[1735104385307,0.28417971,703.78,702.45,1.05878385]
[1735104385771,0.26146676,703.77,702.45,1.05878385]
[1735104385978,0.28418779,703.76,702.45,1.05878385]
[1735104386171,0.26146676,703.75,702.45,1.05878385]
[1735104386371,0.28419586,703.74,702.45,1.05878385]
[1735104386569,0.28419586,703.74,702.34,0.28476236]
[1735104386570,0.28419586,703.74,702.5,1.05878385]
[1735104387573,0.28419586,703.74,702.52,1.05878385]
[1735104388676,0.28419586,703.74,702.53,1.05878385]
[1735104390077,0.28419586,703.74,702.56,1.05878385]
[1735104390478,0.26147568,703.73,702.56,1.05878385]
[1735104390676,0.28419586,703.74,702.56,1.05878385]
[1735104390977,0.28419586,703.74,702.53,1.05878385]
[1735104392075,0.28419586,703.74,702.34,0.28476236]
[1735104400583,0.26152778,703.73,702.34,0.28476236]
[1735104401391,0.26152778,703.73,702.4,1.05878385]
[1735104402204,0.28419586,703.74,702.4,1.05878385]
[1735104402399,0.28420798,703.71,702.4,1.05878385]
[1735104402595,0.26152794,703.7,702.4,1.05878385]
[1735104403193,0.2842201,703.68,702.4,1.05878385]
[1735104403497,0.2615272,703.67,702.39,1.05878385]
[1735104403696,0.28423221,703.65,702.39,1.05878385]
[1735104403898,0.2615272,703.64,702.39,1.05878385]
[1735104404499,0.2615272,703.64,701.77,1.27054062]
[1735104404500,0.2615272,703.64,702.37,1.05878385]
[1735104405601,0.2615272,703.64,702.39,1.05878385]
[1735104406194,0.28424433,703.62,702.39,1.05878385]
[1735104406398,0.2615272,703.61,702.39,1.05878385]
[1735104406599,0.2615272,703.61,702.38,1.05878385]
[1735104406796,0.28424433,703.62,702.38,1.05878385]
[1735104407203,0.26152632,703.61,702.38,1.05878385]
[1735104407615,0.28425645,703.59,702.4,1.05878385]
[1735104408702,0.28425645,703.59,702.04,1.05878385]
[1735104408703,0.28425645,703.59,702.42,1.05878385]
[1735104408905,0.26152631,703.58,702.42,1.05878385]
[1735104409099,0.28426453,703.57,702.42,1.05878385]
[1735104409609,0.28426453,703.57,702.41,1.05878385]
[1735104410305,0.26153265,703.56,702.41,1.05878385]
[1735104410501,0.28427261,703.55,702.41,1.05878385]
[1735104411304,0.28427261,703.55,702.42,1.05878385]
[1735104412206,0.28427261,703.55,702.38,1.05878385]
[1735104413404,0.28427261,703.55,702.37,1.05878385]
[1735104413602,0.26153851,703.54,702.37,1.05878385]
[1735104413804,0.28428069,703.53,702.37,1.05878385]
[1735104414014,0.26153851,703.52,702.37,1.05878385]
[1735104414206,0.28428878,703.51,702.37,1.05878385]
[1735104414703,0.28428878,703.51,702.41,1.05878385]
[1735104419015,0.28428878,703.51,702.4,1.05878385]
[1735104420015,0.28428878,703.51,702.04,1.05878385]
[1735104420016,0.28428878,703.51,702.41,1.05878385]
[1735104421217,0.28428878,703.51,702.36,1.05878385]
[1735104422719,0.28428878,703.51,702.2,1.05878385]
[1735104426019,0.28428878,703.51,702.24,1.05878385]
[1735104428517,0.28428878,703.51,702.23,1.05878385]
[1735104429722,0.28428878,703.51,702.18,1.05878385]
[1735104430118,0.26158485,703.5,702.18,1.05878385]
[1735104430322,0.2843009,703.48,702.18,1.05878385]
[1735104430525,0.26158639,703.47,702.18,1.05878385]
[1735104430724,0.28431302,703.45,702.18,1.05878385]
[1735104431061,0.28431302,703.45,702.27,1.05878385]
[1735104432024,0.26158997,703.44,702.29,1.05878385]
[1735104432424,0.28432111,703.43,702.29,1.05878385]
[1735104433326,0.28432111,703.43,702.28,1.05878385]
[1735104434124,0.28432111,703.43,702.27,1.05878385]
[1735104434425,0.26159342,703.42,702.27,1.05878385]
[1735104435423,0.26159342,703.42,702.29,1.05878385]
[1735104436027,0.28432111,703.43,702.29,1.05878385]
[1735104436327,0.26159106,703.42,702.29,1.05878385]
[1735104436827,0.28432111,703.43,702.29,1.05878385]
[1735104437027,0.26159015,703.42,702.29,1.05878385]
[1735104437484,0.26159015,703.42,701.72,1.27054062]
[1735104437485,0.26159015,703.42,702.34,1.05878385]
[1735104438427,0.26159015,703.42,702.33,1.05878385]
[1735104439022,0.28432919,703.41,702.33,1.05878385]
[1735104439223,0.26159015,703.4,702.33,1.05878385]
[1735104440729,0.26159015,703.4,701.72,2.16168369]
[1735104440730,0.26159015,703.4,702.41,1.05878385]
[1735104442125,0.28433728,703.39,702.41,1.05878385]
[1735104442330,0.26159015,703.38,702.42,1.05878385]
[1735104443030,0.28434536,703.37,702.42,1.05878385]
[1735104443236,0.26159015,703.36,702.28,1.05878385]
[1735104444625,0.28435345,703.35,702.28,1.05878385]
[1735104444830,0.26159015,703.34,702.28,1.05878385]
[1735104445031,0.26159015,703.34,702.05,1.05878385]
[1735104445032,0.26159015,703.34,702.27,1.05878385]
[1735104445230,0.26161108,703.33,702.27,1.05878385]
[1735104445427,0.28435345,703.35,702.27,1.05878385]
[1735104445627,0.26161642,703.34,702.27,1.05878385]
[1735104446024,0.28436153,703.33,702.27,1.05878385]
[1735104446230,0.28436153,703.33,701.63,2.16168369]
[1735104446231,0.28436153,703.33,702.26,1.05878385]
[1735104447532,0.28436153,703.33,702.25,1.05878385]
[1735104448534,0.28436153,703.33,702.24,1.05878385]
[1735104451137,0.28436153,703.33,702.25,1.05878385]
[1735104452135,0.26161759,703.32,702.25,1.05878385]
[1735104452337,0.28436962,703.31,702.25,1.05878385]
[1735104453535,0.28436962,703.31,702.29,1.05878385]
[1735104454935,0.28436962,703.31,702.3,1.05878385]
[1735104455339,0.2616123,703.3,702.3,1.05878385]
[1735104456144,0.2616123,703.3,702.34,1.05878385]
[1735104457046,0.2616123,703.3,702.36,1.05878385]
[1735104458143,0.2616123,703.3,702.15,1.05878385]
[1735104458144,0.2616123,703.3,702.38,1.05878385]
[1735104459038,0.2616123,703.3,702.4,1.05878385]
[1735104460979,0.2616123,703.3,702.21,1.05878385]
[1735104460980,0.2616123,703.3,702.39,1.05878385]
[1735104461246,0.26161862,703.29,702.39,1.05878385]
[1735104461445,0.26161862,703.28,702.39,1.05878385]
[1735104461644,0.26161862,703.27,702.39,1.05878385]
[1735104461846,0.26161862,703.26,702.39,1.05878385]
[1735104462040,0.26161982,703.25,702.39,1.05878385]
[1735104462244,0.26161982,703.24,702.39,1.05878385]
[1735104462446,0.28436962,703.31,702.39,1.05878385]
[1735104462647,0.26161729,703.3,702.39,1.05878385]
[1735104462949,0.26161729,703.3,702.37,1.05878385]
[1735104463149,0.28437771,703.29,702.37,1.05878385]
[1735104463344,0.26161729,703.28,702.37,1.05878385]
[1735104463548,0.28438579,703.27,702.37,1.05878385]
[1735104463752,0.28438579,703.27,701.8,2.16168369]
[1735104463753,0.28438579,703.27,702.38,1.05878385]
[1735104464950,0.28438579,703.27,702.33,1.05878385]
[1735104465848,0.28438579,703.27,702.31,1.05878385]
[1735104466757,0.28438579,703.27,702.33,1.05878385]
[1735104472050,0.28438579,703.27,702.3,1.05878385]
[1735104474162,0.28438579,703.27,702.31,1.05878385]
[1735104475158,0.28438579,703.27,702.32,1.05878385]
[1735104476556,0.28438579,703.27,702.29,1.05878385]
[1735104477458,0.28438579,703.27,702.31,1.05878385]
[1735104478254,0.28438579,703.27,702.04,1.05878385]
[1735104478255,0.28438579,703.27,702.32,1.05878385]
[1735104479456,0.28438579,703.27,702.33,1.05878385]
[1735104480460,0.28438579,703.27,702.32,1.05878385]
[1735104481457,0.28438579,703.27,702.33,1.05878385]
[1735104481957,0.28438579,703.27,702.31,1.05878385]
[1735104484061,0.28438579,703.27,702.29,1.05878385]
[1735104486263,0.28438579,703.27,702.31,1.05878385]
[1735104487262,0.28438579,703.27,702.32,1.05878385]
[1735104490358,0.28438579,703.27,702.33,1.05878385]
[1735104491561,0.28438579,703.27,702.34,1.05878385]
[1735104492568,0.28438579,703.27,701.59,2.16168369]
[1735104492569,0.28438579,703.27,702.36,1.05878385]
[1735104493563,0.28438579,703.27,701.65,2.16168369]
[1735104493564,0.28438579,703.27,702.4,1.05878385]
[1735104494862,0.28438579,703.27,702.39,1.05878385]
[1735104495659,0.28438579,703.27,701.85,1.27054062]
[1735104495660,0.28438579,703.27,702.4,1.05878385]
[1735104496670,0.28438579,703.27,702.41,1.05878385]
[1735104497562,0.28438579,703.27,701.9,1.27054062]
[1735104497563,0.28438579,703.27,702.42,1.05878385]
[1735104498761,0.28438579,703.27,702.43,1.05878385]
[1735104500968,0.28438579,703.27,702.4,1.05878385]
[1735104502069,0.28438579,703.27,702.35,1.05878385]
[1735104504571,0.28438579,703.27,702.32,1.05878385]
[1735104506473,0.28438579,703.27,702.29,1.05878385]
[1735104507375,0.28438579,703.27,702.3,1.05878385]
[1735104509874,0.28438579,703.27,702.31,1.05878385]
[1735104510981,0.28438579,703.27,702.32,1.05878385]
[1735104512180,0.28438579,703.27,702.35,1.05878385]
[1735104514481,0.28438579,703.27,702.44,1.05878385]
[1735104515581,0.28438579,703.27,702.5,1.05878385]
[1735104516977,0.28438579,703.27,702.48,1.05878385]
[1735104517780,0.28438579,703.27,702.45,1.05878385]
[1735104518797,0.28438579,703.27,702.43,1.05878385]
[1735104520885,0.28438579,703.27,702.4,1.05878385]
[1735104521886,0.28438579,703.27,702.41,1.05878385]
[1735104522790,0.28438579,703.27,702.37,1.05878385]
[1735104523587,0.28438579,703.27,702.38,1.05878385]
[1735104524686,0.28438579,703.27,702.4,1.05878385]
[1735104525691,0.28438579,703.27,702.44,1.05878385]
[1735104526492,0.28438579,703.27,702.43,1.05878385]
[1735104529803,0.28438579,703.27,702.46,1.05878385]
[1735104536100,0.28438579,703.27,702.4,1.05878385]
[1735104537393,0.28438579,703.27,702.41,1.05878385]
[1735104539895,0.28438579,703.27,702.07,1.05878385]
[1735104539896,0.28438579,703.27,702.42,1.05878385]
[1735104540895,0.28438579,703.27,702.41,1.05878385]
[1735104541701,0.28438579,703.27,702.42,1.05878385]
[1735104542696,0.28438579,703.27,702.43,1.05878385]
[1735104545903,0.28438579,703.27,702.39,1.05878385]
[1735104546603,0.28438579,703.27,702.42,1.05878385]
[1735104547897,0.28438579,703.27,702.19,1.05878385]
[1735104549205,0.28438579,703.27,701.44,1.27054062]
[1735104549206,0.28438579,703.27,702.18,1.05878385]
[1735104550704,0.28438579,703.27,702.15,1.05878385]
[1735104551508,0.28438579,703.27,701.24,2.94530219]
[1735104551509,0.28438579,703.27,702.17,1.05878385]
[1735104552705,0.28438579,703.27,702.16,1.05878385]
[1735104553605,0.28438579,703.27,701.27,2.16168369]
[1735104553606,0.28438579,703.27,702.15,1.05878385]
[1735104556007,0.28438579,703.27,702.32,1.05878385]
[1735104557206,0.28438579,703.27,702.44,1.05878385]
[1735104558110,0.28438579,703.27,702.38,1.05878385]
[1735104563617,0.28438579,703.27,702.37,1.05878385]
[1735104564516,0.28438579,703.27,702.1,1.05878385]
[1735104564517,0.28438579,703.27,702.44,1.05878385]
[1735104565616,0.28438579,703.27,701.73,2.16168369]
[1735104565617,0.28438579,703.27,702.42,1.05878385]
[1735104566317,0.28438579,703.27,702.41,1.05878385]
[1735104567410,0.28438579,703.27,701.67,2.16168369]
[1735104567411,0.28438579,703.27,702.5,1.05878385]
[1735104569419,0.28438579,703.27,702.49,1.05878385]
[1735104570019,0.28438579,703.27,702.47,1.05878385]
[1735104572419,0.28438579,703.27,702.45,1.05878385]
[1735104573013,0.28438579,703.27,702.08,1.05878385]
[1735104573014,0.28438579,703.27,702.44,1.05878385]
[1735104574018,0.28438579,703.27,701.71,2.16168369]
[1735104574019,0.28438579,703.27,702.43,1.05878385]
[1735104574822,0.27529097,703.27,702.43,1.05878385]
[1735104575021,0.27529097,703.27,702.42,1.05878385]
[1735104575820,0.27529097,703.27,701.7,2.16168369]
[1735104575821,0.27529097,703.27,702.47,1.05878385]
[1735104576823,0.27529097,703.27,702.48,1.05878385]
[1735104577226,0.27529097,703.27,689.69,20.34281856]
[1735104577419,0.27529097,703.27,700.7,2.81612237]
[1735104577620,0.27529097,703.27,700.71,2.81612237]
[1735104577924,0.27529097,703.27,700.72,5.37239989]
[1735104578123,0.27529097,703.27,700.73,5.37239989]
[1735104578325,0.27529097,703.27,700.74,2.81612237]
[1735104578519,0.27529097,703.27,700.75,2.81612237]
[1735104578720,0.27529097,703.27,700.76,5.37239989]
[1735104578920,0.27529097,703.27,700.77,5.37239989]
[1735104579119,0.27529097,703.27,700.78,5.37239989]
[1735104579320,0.27529097,703.27,702.44,1.05782971]
[1735104579922,0.27529097,703.27,702.42,1.05782971]
[1735104581728,0.27529097,703.27,702.21,1.05782971]
[1735104581729,0.27529097,703.27,702.43,1.05782971]
[1735104582825,0.27529097,703.27,702.41,1.05782971]
[1735104583725,0.27529097,703.27,702.42,1.05782971]
[1735104584830,0.27529097,703.27,702.32,1.05782971]
[1735104585530,0.27529097,703.27,702.35,1.05782971]
[1735104586330,0.27529097,703.27,701.54,2.15973566]
[1735104586331,0.27529097,703.27,702.36,1.05782971]
[1735104587631,0.27529097,703.27,702.38,1.05782971]
[1735104588534,0.27529097,703.27,702.4,1.05782971]
[1735104589330,0.27529097,703.27,702.42,1.05782971]
[1735104590534,0.27529097,703.27,701.59,2.15973566]